fUSD/lending_fUSD_20240319
["ID","MTS","AMOUNT","RATE_DAILY","PERIOD"]
[319532939,1710827534081,-991.97,0.00056438,120]
[319532940,1710827534092,-500.0,0.00056438,120]
[319532941,1710827534102,-956.61,0.00056438,120]
[319532942,1710827534112,-578.44,0.00056438,120]
[319532943,1710827534122,-500.0,0.00056438,120]
[319532944,1710827534133,-500.0,0.00056438,120]
[319532945,1710827534143,-823.71,0.00056438,120]
[319532946,1710827534152,-500.0,0.00056438,120]
[319532947,1710827534162,-1621.14,0.00056438,120]
[319532948,1710827534172,-500.0,0.00056438,120]
[319532949,1710827534181,-500.0,0.00056438,120]
[319532950,1710827534190,-500.0,0.00056438,120]
[319532951,1710827534200,-500.0,0.00056438,120]
[319532952,1710827534209,-872.35,0.00056438,120]
[319532953,1710827534220,-1395.4,0.00056438,120]
[319532954,1710827534230,-500.0,0.00056438,120]
[319532955,1710827534241,-500.0,0.00056438,120]
[319532956,1710827534251,-863.59,0.00056438,120]
[319532957,1710827534266,-1782.11,0.00056438,120]
[319532958,1710827534276,-1222.64,0.00056438,120]
[319532959,1710827534286,-500.0,0.00056438,120]
[319532960,1710827534295,-500.0,0.00056438,120]
[319532961,1710827534305,-500.0,0.00056438,120]
[319532962,1710827534314,-500.0,0.00056438,120]
[319532963,1710827534324,-500.0,0.00056438,120]
[319532964,1710827534334,-651.34,0.00056438,120]
[319532965,1710827534344,-1507.72,0.00056438,120]
[319532966,1710827534354,-500.0,0.00056438,120]
[319532967,1710827534364,-1146.22,0.00056438,120]
[319532968,1710827534374,-500.0,0.00056438,120]
[319532969,1710827534383,-500.0,0.00056438,120]
[319532970,1710827534393,-500.0,0.00056438,120]
[319532971,1710827534403,-736.08,0.00056438,120]
[319532972,1710827534412,-500.0,0.00056438,2]
[319532973,1710827534422,-500.0,0.00056438,120]
[319532974,1710827534432,-1252.35,0.00056438,120]
[319532975,1710827534443,-500.0,0.00056438,120]
[319532976,1710827534453,-500.0,0.00056438,120]
[319532977,1710827534462,-1290.08,0.00056438,120]
[319532978,1710827534472,-607.86,0.00056438,120]
[319532979,1710827534482,-500.0,0.00056438,120]
[319532980,1710827534491,-920.81,0.00056438,120]
[319532981,1710827534501,-500.0,0.00056438,120]
[319532982,1710827534514,-712.48,0.00056438,120]
[319532983,1710827534524,-672.43,0.00056438,120]
[319532984,1710827534534,-500.0,0.00056438,120]
[319532985,1710827534543,-1446.99,0.00056438,120]
[319532986,1710827534553,-500.0,0.00056438,120]
[319532987,1710827534562,-304.64833455,0.00056438,120]
[319532988,1710827534572,-681.95,0.00056438,120]
[319532989,1710827534581,-500.0,0.00056438,120]
[319532990,1710827534590,-1203.27,0.00056438,120]
[319532991,1710827534599,-500.0,0.00056438,120]
[319532992,1710827534609,-500.0,0.00056438,120]
[319532993,1710827534618,-636.32,0.00056438,120]
[319532994,1710827534627,-500.0,0.00056438,120]
[319532995,1710827534637,-500.0,0.00056438,120]
[319532996,1710827534646,-500.0,0.00056438,120]
[319532997,1710827534655,-561.34,0.00056438,120]
[319532998,1710827534749,-992.51,0.00056438,120]
[319532999,1710827534763,-500.0,0.00056438,120]
[319533000,1710827534774,-2015.74,0.00056438,120]
[319533001,1710827534789,-2014.25,0.00056438,120]
[319533002,1710827534799,-501.6191853,0.00056438,120]
[319533003,1710827534809,-500.0,0.00056438,120]
[319533004,1710827534819,-500.0,0.00056438,120]
[319533005,1710827534830,-500.0,0.00056438,120]
[319533006,1710827534839,-1066.88,0.00056438,120]
[319533007,1710827534849,-500.0,0.00056438,120]
[319533008,1710827534859,-785.05,0.00056438,120]
[319533009,1710827534869,-500.0,0.00056438,120]
[319533010,1710827534879,-500.0,0.00056438,120]
[319533011,1710827534889,-500.0,0.00056438,120]
[319533012,1710827534900,-500.0,0.00056438,120]
[319533013,1710827534909,-500.0,0.00056438,120]
[319533014,1710827534920,-3649.43,0.00056438,120]
[319533015,1710827534929,-1361.02,0.00056438,120]
[319533016,1710827534940,-643.73,0.00056438,120]
[319533017,1710827534951,-470.14787228,0.00056438,120]
[319533018,1710827534961,-500.0,0.00056438,120]
[319533019,1710827534971,-500.0,0.00056438,120]
[319533020,1710827534982,-691.94,0.00056438,120]
[319533021,1710827534992,-500.0,0.00056438,120]
[319533022,1710827535002,-500.0,0.00056438,120]
[319533023,1710827535014,-1638.2,0.00056438,120]
[319533024,1710827535023,-6349.49,0.00056438,120]
[319533025,1710827535032,-726.71,0.00056438,120]
[319533026,1710827535043,-500.0,0.00056438,120]
[319533027,1710827535052,-3479.07,0.00056438,120]
[319533028,1710827535062,-500.0,0.00056438,120]
[319533029,1710827535071,-592.5,0.00056438,120]
[319533030,1710827535080,-1487.86,0.00056438,120]
[319533031,1710827535090,-500.0,0.00056438,120]
[319533032,1710827535100,-1617.51,0.00056438,120]
[319533033,1710827535109,-523.58,0.00056438,120]
[319533034,1710827535119,-1381.97,0.00056438,120]
[319533035,1710827535128,-1232.76,0.00056438,120]
[319533036,1710827535138,-198.83499571,0.00056438,120]
[319533037,1710827535147,-500.0,0.00056438,120]
[319533038,1710827535157,-500.0,0.00056438,120]
[319533039,1710827535167,-1906.74,0.00056438,120]
[319533040,1710827535176,-1034.04,0.00056438,120]
[319533041,1710827535186,-1828.07,0.00056438,120]
[319533042,1710827535196,-500.0,0.00056438,120]
[319533043,1710827535206,-500.0,0.00056438,120]
[319533044,1710827535216,-500.0,0.00056438,120]
[319533045,1710827535225,-1028.45,0.00056438,120]
[319533046,1710827535235,-500.0,0.00056438,120]
[319533047,1710827535244,-265.30746493,0.00056438,120]
[319533048,1710827535256,-1268.03,0.00056438,120]
[319533049,1710827535266,-1148.36,0.00056438,120]
[319533050,1710827535276,-500.0,0.00056438,120]
[319533051,1710827535286,-513.20308705,0.00056438,120]
[319533052,1710827535295,-500.0,0.00056438,120]
[319533053,1710827535305,-1653.79,0.00056438,120]
[319533054,1710827535315,-1023.81,0.00056438,120]
[319533055,1710827535324,-500.0,0.00056438,120]
[319533056,1710827535333,-500.0,0.00056438,120]
[319533057,1710827535344,-2088.57,0.00056438,120]
[319533058,1710827535354,-500.0,0.00056438,120]
[319533059,1710827535363,-562.53,0.00056438,120]
[319533060,1710827535373,-500.0,0.00056438,120]
[319533061,1710827535382,-625.71,0.00056438,120]
[319533062,1710827535392,-500.0,0.00056438,120]
[319533063,1710827535401,-500.0,0.00056438,120]
[319533064,1710827535410,-1750.75,0.00056438,120]
[319533065,1710827535420,-501.08,0.00056438,120]
[319533066,1710827535430,-500.0,0.00056438,120]
[319533067,1710827535439,-1049.36,0.00056438,120]
[319533068,1710827535448,-827.55,0.00056438,120]
[319533069,1710827535457,-888.26,0.00056438,120]
[319533070,1710827535466,-982.82,0.00056438,120]
[319533071,1710827535475,-1779.27,0.00056438,120]
[319533072,1710827535484,-507.79143129,0.00056438,120]
[319533073,1710827535493,-500.0,0.00056438,120]
[319533074,1710827535504,-500.0,0.00056438,120]
[319533075,1710827535513,-500.0,0.00056438,120]
[319533076,1710827535523,-500.0,0.00056438,120]
[319533077,1710827535531,-1147.76,0.00056438,120]
[319533078,1710827535541,-1745.12,0.00056438,120]
[319533079,1710827535550,-925.63,0.00056438,120]
[319533080,1710827535560,-854.16,0.00056438,120]
[319533081,1710827535569,-505.11,0.00056438,120]
[319533082,1710827535579,-500.0,0.00056438,120]
[319533083,1710827535589,-734.76,0.00056438,120]
[319533084,1710827535598,-535.28,0.00056438,120]
[319533085,1710827535607,-526.02,0.00056438,120]
[319533086,1710827535619,-500.0,0.00056438,120]
[319533087,1710827535629,-500.0,0.00056438,120]
[319533088,1710827535638,-500.0,0.00056438,120]
[319533089,1710827535647,-500.0,0.00056438,120]
[319533090,1710827535656,-1564.61,0.00056438,120]
[319533091,1710827535666,-1313.48,0.00056438,120]
[319533092,1710827535674,-2662.67,0.00056438,120]
[319533093,1710827535684,-500.0,0.00056438,120]
[319533094,1710827535693,-500.0,0.00056438,120]
[319533095,1710827535703,-500.0,0.00056438,120]
[319533096,1710827535712,-1397.08,0.00056438,120]
[319533097,1710827535721,-866.38,0.00056438,120]
[319533098,1710827535729,-1097.4,0.00056438,120]
[319533099,1710827535739,-1439.36,0.00056438,120]
[319533100,1710827535748,-500.0,0.00056438,120]
[319533101,1710827535759,-500.0,0.00056438,120]
[319533102,1710827535768,-496.26311417,0.00056438,120]
[319533103,1710827535777,-1928.4,0.00056438,120]
[319533104,1710827535786,-500.0,0.00056438,120]
[319533105,1710827535796,-500.0,0.00056438,120]
[319533106,1710827535806,-1964.81,0.00056438,120]
[319533107,1710827535819,-660.08,0.00056438,120]
[319533108,1710827535829,-1239.73,0.00056438,120]
[319533109,1710827535839,-500.0,0.00056438,120]
[319533110,1710827535848,-967.08,0.00056438,120]
[319533111,1710827535857,-500.0,0.00056438,120]
[319533112,1710827535866,-500.0,0.00056438,120]
[319533113,1710827535876,-1730.58,0.00056438,120]
[319533114,1710827535886,-500.0,0.00056438,120]
[319533115,1710827535896,-500.0,0.00056438,120]
[319533116,1710827535905,-500.0,0.00056438,120]
[319533117,1710827535915,-1049.65,0.00056438,120]
[319533118,1710827535924,-1374.2,0.00056438,120]
[319533119,1710827535934,-2060.17,0.00056438,120]
[319533120,1710827535943,-510.5,0.00056438,120]
[319533121,1710827535953,-500.0,0.00056438,120]
[319533122,1710827535962,-500.0,0.00056438,120]
[319533123,1710827535970,-500.0,0.00056438,120]
[319533124,1710827535981,-500.0,0.00056438,120]
[319533125,1710827535990,-1994.76,0.00056438,120]
[319533126,1710827536000,-1336.07,0.00056438,120]
[319533127,1710827536013,-2991.56,0.00056438,120]
[319533128,1710827536023,-595.79,0.00056438,120]
[319533129,1710827536033,-1021.8,0.00056438,120]
[319533130,1710827536043,-1288.74,0.00056438,120]
[319533131,1710827536053,-500.0,0.00056438,120]
[319533132,1710827536063,-510.4103138,0.00056438,120]
[319533133,1710827536073,-500.0,0.00056438,120]
[319533134,1710827536083,-1779.68,0.00056438,120]
[319533135,1710827536093,-500.0,0.00056438,120]
[319533136,1710827536104,-1753.04,0.00056438,120]
[319533137,1710827536114,-500.0,0.00056438,120]
[319533138,1710827536124,-525.22609232,0.00056438,120]
[319533139,1710827536134,-528.83546295,0.00056438,120]
[319533140,1710827536144,-500.0,0.00056438,120]
[319533141,1710827536154,-509.93,0.00056438,120]
[319533142,1710827536165,-2273.03,0.00056438,120]
[319533143,1710827536175,-1250.13,0.00056438,120]
[319533144,1710827536185,-500.0,0.00056438,120]
[319533145,1710827536195,-1725.58,0.00056438,120]
[319533146,1710827536206,-650.12,0.00056438,120]
[319533147,1710827536216,-500.0,0.00056438,120]
[319533148,1710827536227,-500.0,0.00056438,120]
[319533149,1710827536237,-593.53,0.00056438,120]
[319533150,1710827536247,-500.0,0.00056438,120]
[319533151,1710827536259,-500.0,0.00056438,120]
[319533152,1710827536269,-500.0,0.00056438,120]
[319533153,1710827536279,-500.0,0.00056438,120]
[319533154,1710827536289,-1663.43,0.00056438,120]
[319533155,1710827536299,-500.0,0.00056438,120]
[319533156,1710827536308,-285.18196185,0.00056438,120]
[319533157,1710827536319,-515.58,0.00056438,120]
[319533158,1710827536329,-500.0,0.00056438,120]
[319533159,1710827536339,-578.4,0.00056438,120]
[319533160,1710827536349,-500.0,0.00056438,120]
[319533161,1710827536359,-500.0,0.00056438,120]
[319533162,1710827536368,-580.72,0.00056438,120]
[319533163,1710827536378,-1961.16,0.00056438,120]
[319533164,1710827536388,-500.0,0.00056438,120]
[319533165,1710827536397,-500.0,0.00056438,120]
[319533166,1710827536407,-500.0,0.00056438,120]
[319533167,1710827536417,-500.0,0.00056438,120]
[319533168,1710827536427,-633.93,0.00056438,120]
[319533169,1710827536436,-500.0,0.00056438,120]
[319533170,1710827536446,-500.0,0.00056438,120]
[319533171,1710827536456,-500.0,0.00056438,120]
[319533172,1710827536466,-500.0,0.00056438,120]
[319533173,1710827536476,-331.53197806,0.00056438,120]
[319533174,1710827536486,-1389.97,0.00056438,120]
[319533175,1710827536496,-500.0,0.00056438,120]
[319533176,1710827536509,-1624.64,0.00056438,120]
[319533177,1710827536520,-500.0,0.00056438,120]
[319533178,1710827536531,-500.0,0.00056438,120]
[319533179,1710827536542,-500.0,0.00056438,120]
[319533180,1710827536553,-500.0,0.00056438,120]
[319533181,1710827536564,-500.0,0.00056438,120]
[319533182,1710827536575,-650.76,0.00056438,120]
[319533183,1710827536586,-500.0,0.00056438,120]
[319533184,1710827536596,-500.0,0.00056438,120]
[319533185,1710827536606,-450.80976743,0.00056438,120]
[319533186,1710827536616,-500.0,0.00056438,120]
[319533187,1710827536626,-500.0,0.00056438,120]
[319533188,1710827536636,-500.0,0.00056438,120]
[319533189,1710827536645,-500.0,0.00056438,120]
[319533190,1710827536655,-805.67,0.00056438,120]
[319533191,1710827536665,-1101.66,0.00056438,120]
[319533192,1710827536675,-500.0,0.00056438,120]
[319533193,1710827536685,-500.0,0.00056438,120]
[319533194,1710827536695,-500.0,0.00056438,120]
[319533195,1710827536705,-7025.4,0.00056438,120]
[319533196,1710827536715,-500.0,0.00056438,120]
[319533197,1710827536725,-500.0,0.00056438,120]
[319533198,1710827536735,-461.87021368,0.00056438,120]
[319533199,1710827536744,-500.0,0.00056438,120]
[319533200,1710827536754,-500.0,0.00056438,120]
[319533201,1710827536767,-500.0,0.00056438,120]
[319533202,1710827536777,-500.0,0.00056438,120]
[319533203,1710827536790,-500.0,0.00056438,120]
[319533204,1710827536801,-1841.28,0.00056438,120]
[319533205,1710827536810,-777.69,0.00056438,120]
[319533206,1710827536822,-329.48,0.00056438,120]
[319533207,1710827536832,-531.0,0.00056438,120]
[319533208,1710827536842,-809.07,0.00056438,120]
[319533209,1710827536852,-1186.03,0.00056438,120]
[319533210,1710827536862,-829.75,0.00056438,120]
[319533211,1710827536872,-500.0,0.00056438,120]
[319533212,1710827536881,-500.0,0.00056438,120]
[319533213,1710827536892,-500.0,0.00056438,120]
[319533214,1710827536901,-500.0,0.00056438,120]
[319533215,1710827536910,-2559.72,0.00056438,120]
[319533216,1710827536921,-213.03286396,0.00056438,120]
[319533217,1710827536931,-1669.33,0.00056438,120]
[319533218,1710827536941,-500.0,0.00056438,120]
[319533219,1710827536952,-500.0,0.00056438,120]
[319533220,1710827536962,-500.0,0.00056438,120]
[319533221,1710827536972,-500.0,0.00056438,120]
[319533222,1710827536982,-1063.99,0.00056438,120]
[319533223,1710827536992,-500.0,0.00056438,120]
[319533224,1710827537002,-500.0,0.00056438,120]
[319533225,1710827537016,-500.0,0.00056438,120]
[319533226,1710827537026,-500.0,0.00056438,120]
[319533227,1710827537036,-1101.81,0.00056438,120]
[319533228,1710827537047,-5517.49,0.00056438,120]
[319533229,1710827537057,-829.57,0.00056438,2]
[319533230,1710827537067,-723.99,0.00056438,120]
[319533231,1710827537077,-500.0,0.00056438,120]
[319533232,1710827537086,-2000.0,0.00056438,120]
[319533233,1710827537096,-2640.45,0.00056438,120]
[319533234,1710827537106,-831.79,0.00056438,120]
[319533235,1710827537116,-500.0,0.00056438,120]
[319533236,1710827537126,-1422.87,0.00056438,120]
[319533237,1710827537135,-1889.43,0.00056438,120]
[319533238,1710827537144,-501.44,0.00056438,120]
[319533239,1710827537154,-500.0,0.00056438,120]
[319533240,1710827537164,-500.0,0.00056438,120]
[319533241,1710827537174,-500.0,0.00056438,120]
[319533242,1710827537183,-500.0,0.00056438,120]
[319533243,1710827537193,-1718.81,0.00056438,120]
[319533244,1710827537203,-500.0,0.00056438,120]
[319533245,1710827537213,-568.35,0.00056438,120]
[319533246,1710827537223,-500.0,0.00056438,120]
[319533247,1710827537232,-575.02,0.00056438,120]
[319533248,1710827537242,-17299.49,0.00056438,120]
[319533249,1710827537251,-1866.96,0.00056438,120]
[319533250,1710827537263,-811.96,0.00056438,120]
[319533251,1710827537272,-1873.11,0.00056438,120]
[319533252,1710827537282,-500.0,0.00056438,120]
[319533253,1710827537291,-502.90168014,0.00056438,120]
[319533254,1710827537300,-500.0,0.00056438,120]
[319533255,1710827537309,-319.02500459,0.00056438,120]
[319533256,1710827537318,-2357.17,0.00056438,120]
[319533257,1710827537328,-500.0,0.00056438,120]
[319533258,1710827537338,-500.0,0.00056438,120]
[319533259,1710827537347,-500.0,0.00056438,120]
[319533260,1710827537357,-500.0,0.00056438,120]
[319533261,1710827537367,-1040.88,0.00056438,120]
[319533262,1710827537376,-2406.01,0.00056438,120]
[319533263,1710827537386,-500.0,0.00056438,120]
[319533264,1710827537395,-475.52746656,0.00056438,120]
[319533265,1710827537404,-500.0,0.00056438,120]
[319533266,1710827537414,-500.0,0.00056438,120]
[319533267,1710827537423,-642.2,0.00056438,120]
[319533268,1710827537433,-6514.2,0.00056438,120]
[319533269,1710827537443,-500.0,0.00056438,120]
[319533270,1710827537452,-1089.93,0.00056438,120]
[319533271,1710827537461,-2625.47,0.00056438,120]
[319533272,1710827537471,-660.71,0.00056438,120]
[319533273,1710827537481,-1126.8,0.00056438,120]
[319533274,1710827537490,-500.0,0.00056438,120]
[319533275,1710827537500,-500.0,0.00056438,120]
[319533276,1710827537511,-500.0,0.00056438,120]
[319533277,1710827537520,-500.0,0.00056438,120]
[319533278,1710827537530,-500.0,0.00056438,120]
[319533279,1710827537541,-500.0,0.00056438,120]
[319533280,1710827537550,-500.0,0.00056438,120]
[319533281,1710827537560,-636.97,0.00056438,120]
[319533282,1710827537569,-500.0,0.00056438,120]
[319533283,1710827537579,-1652.91,0.00056438,120]
[319533284,1710827537588,-501.33678702,0.00056438,120]
[319533285,1710827537598,-1070.72,0.00056438,120]
[319533286,1710827537608,-14962.68,0.00056438,120]
[319533287,1710827537618,-2901.93,0.00056438,120]
[319533288,1710827537627,-1082.41,0.00056438,120]
[319533289,1710827537637,-500.0,0.00056438,120]
[319533290,1710827537647,-940.31,0.00056438,120]
[319533291,1710827537657,-500.0,0.00056438,120]
[319533292,1710827537667,-1116.86,0.00056438,120]
[319533293,1710827537676,-500.0,0.00056438,120]
[319533294,1710827537686,-500.0,0.00056438,120]
[319533295,1710827537696,-500.0,0.00056438,120]
[319533296,1710827537705,-500.0,0.00056438,120]
[319533297,1710827537715,-1733.23,0.00056438,120]
[319533298,1710827537726,-500.0,0.00056438,120]
[319533299,1710827537737,-42693.99,0.00056438,120]
[319533300,1710827537746,-630.47,0.00056438,120]
[319533301,1710827537756,-790.43,0.00056438,120]
[319533302,1710827537769,-500.0,0.00056438,120]
[319533303,1710827537779,-551.71,0.00056438,120]
[319533304,1710827537791,-1797.54,0.00056438,120]
[319533305,1710827537801,-500.0,0.00056438,120]
[319533306,1710827537811,-2323.47,0.00056438,120]
[319533307,1710827537822,-500.0,0.00056438,120]
[319533308,1710827537833,-500.0,0.00056438,120]
[319533309,1710827537843,-500.0,0.00056438,120]
[319533310,1710827537854,-1627.65,0.00056438,120]
[319533311,1710827537866,-2587.93,0.00056438,120]
[319533312,1710827537876,-500.0,0.00056438,120]
[319533313,1710827537886,-500.0,0.00056438,120]
[319533314,1710827537896,-500.0,0.00056438,120]
[319533315,1710827537906,-500.0,0.00056438,120]
[319533316,1710827537915,-500.0,0.00056438,120]
[319533317,1710827537925,-789.4,0.00056438,120]
[319533318,1710827537934,-501.72705652,0.00056438,120]
[319533319,1710827537943,-3107.75,0.00056438,120]
[319533320,1710827537953,-500.0,0.00056438,120]
[319533321,1710827537963,-500.0,0.00056438,120]
[319533322,1710827537974,-690.12,0.00056438,120]
[319533323,1710827537984,-2745.12,0.00056438,120]
[319533324,1710827537993,-1463.63,0.00056438,120]
[319533325,1710827538004,-1332.37,0.00056438,120]
[319533326,1710827538017,-500.0,0.00056438,120]
[319533327,1710827538027,-500.0,0.00056438,120]
[319533328,1710827538037,-1293.97,0.00056438,120]
[319533329,1710827538047,-2204.05,0.00056438,120]
[319533330,1710827538056,-20464.22,0.00056438,120]
[319533331,1710827538069,-500.0,0.00056438,120]
[319533332,1710827538081,-1156.96,0.00056438,120]
[319533333,1710827538091,-500.0,0.00056438,120]
[319533334,1710827538101,-788.79,0.00056438,120]
[319533335,1710827538111,-2173.0,0.00056438,120]
[319533336,1710827538121,-500.0,0.00056438,120]
[319533337,1710827538130,-712.63,0.00056438,120]
[319533338,1710827538141,-500.0,0.00056438,120]
[319533339,1710827538150,-747.7,0.00056438,120]
[319533340,1710827538161,-1460.04,0.00056438,120]
[319533341,1710827538171,-500.0,0.00056438,120]
[319533342,1710827538181,-983.3,0.00056438,120]
[319533343,1710827538191,-5519.3,0.00056438,120]
[319533344,1710827538201,-1137.14,0.00056438,120]
[319533345,1710827538211,-500.0,0.00056438,120]
[319533346,1710827538221,-1542.16,0.00056438,120]
[319533347,1710827538231,-500.0,0.00056438,120]
[319533348,1710827538240,-2267.0,0.00056438,120]
[319533349,1710827538250,-500.0,0.00056438,120]
[319533350,1710827538263,-727.93,0.00056438,120]
[319533351,1710827538272,-750.31,0.00056438,120]
[319533352,1710827538282,-500.0,0.00056438,120]
[319533353,1710827538291,-500.0,0.00056438,120]
[319533354,1710827538301,-4080.42,0.00056438,120]
[319533355,1710827538311,-1928.86,0.00056438,120]
[319533356,1710827538320,-2144.67,0.00056438,120]
[319533357,1710827538329,-1213.92,0.00056438,120]
[319533358,1710827538339,-612.48,0.00056438,120]
[319533359,1710827538349,-841.27,0.00056438,120]
[319533360,1710827538357,-1271.64,0.00056438,120]
[319533361,1710827538367,-1008.76,0.00056438,120]
[319533362,1710827538376,-529.15,0.00056438,120]
[319533363,1710827538387,-641.45,0.00056438,120]
[319533364,1710827538398,-2173.5,0.00056438,120]
[319533365,1710827538408,-2497.12,0.00056438,120]
[319533366,1710827538418,-500.0,0.00056438,120]
[319533367,1710827538428,-3047.18,0.00056438,120]
[319533368,1710827538438,-1959.73,0.00056438,120]
[319533369,1710827538447,-5121.11030591,0.00056438,120]
[319533370,1710827539297,-2289.58969409,0.00056438,120]
[319533371,1710827539307,-612.7,0.00056438,120]
[319533372,1710827539317,-944.04,0.00056438,120]
[319533373,1710827539327,-500.0,0.00056438,120]
[319533374,1710827539336,-722.09,0.00056438,120]
[319533375,1710827539346,-2628.6,0.00056438,120]
[319533376,1710827539355,-380.19336503,0.00056438,120]
[319533377,1710827539365,-1967.08,0.00056438,120]
[319533378,1710827539376,-2164.28,0.00056438,120]
[319533379,1710827539385,-500.0,0.00056438,120]
[319533380,1710827539395,-500.0,0.00056438,120]
[319533381,1710827539404,-4020.98,0.00056438,120]
[319533382,1710827539414,-647.76,0.00056438,120]
[319533383,1710827539423,-2736.28,0.00056438,120]
[319533384,1710827539432,-500.0,0.00056438,120]
[319533385,1710827539442,-2992.32,0.00056438,120]
[319533386,1710827539452,-500.0,0.00056438,120]
[319533387,1710827539461,-631.63,0.00056438,120]
[319533388,1710827539470,-1056.07,0.00056438,120]
[319533389,1710827539479,-500.0,0.00056438,120]
[319533390,1710827539489,-500.0,0.00056438,120]
[319533391,1710827539498,-500.0,0.00056438,120]
[319533392,1710827539512,-519.8,0.00056438,120]
[319533393,1710827539522,-500.0,0.00056438,120]
[319533394,1710827539532,-767.17,0.00056438,120]
[319533395,1710827539542,-3047.94,0.00056438,120]
[319533396,1710827539552,-2979.51,0.00056438,120]
[319533397,1710827539562,-624.69,0.00056438,120]
[319533398,1710827539572,-501.29660111,0.00056438,120]
[319533399,1710827539582,-6905.17,0.00056438,120]
[319533400,1710827539592,-2551.19,0.00056438,120]
[319533401,1710827539601,-1096.17,0.00056438,120]
[319533402,1710827539611,-1285.54,0.00056438,120]
[319533403,1710827539621,-500.0,0.00056438,120]
[319533404,1710827539630,-500.0,0.00056438,120]
[319533405,1710827539639,-604.78,0.00056438,120]
[319533406,1710827539649,-500.0,0.00056438,120]
[319533407,1710827539659,-500.0,0.00056438,120]
[319533408,1710827539668,-1899.25,0.00056438,120]
[319533409,1710827539677,-500.0,0.00056438,120]
[319533410,1710827539686,-1182.85,0.00056438,120]
[319533411,1710827539697,-1089.16,0.00056438,120]
[319533412,1710827539707,-2224.33,0.00056438,120]
[319533413,1710827539717,-500.0,0.00056438,120]
[319533414,1710827539728,-2004.49,0.00056438,120]
[319533415,1710827539738,-1747.58,0.00056438,120]
[319533416,1710827539748,-500.0,0.00056438,120]
[319533417,1710827539761,-500.0,0.00056438,120]
[319533418,1710827539772,-1502.65,0.00056438,120]
[319533419,1710827539784,-2093.13,0.00056438,120]
[319533420,1710827539793,-478.87592393,0.00056438,120]
[319533421,1710827539805,-500.0,0.00056438,120]
[319533422,1710827539818,-500.0,0.00056438,120]
[319533423,1710827539829,-500.0,0.00056438,120]
[319533424,1710827539838,-514.33,0.00056438,120]
[319533425,1710827539848,-500.0,0.00056438,120]
[319533426,1710827539858,-1662.12,0.00056438,120]
[319533427,1710827539867,-1393.08,0.00056438,120]
[319533428,1710827539877,-8736.8,0.00056438,120]
[319533429,1710827539887,-500.0,0.00056438,120]
[319533430,1710827539896,-658.54,0.00056438,120]
[319533431,1710827539992,-648.17,0.00056438,120]
[319533432,1710827540002,-500.0,0.00056438,120]
[319533433,1710827540016,-316.53725881,0.00056438,120]
[319533434,1710827540026,-1089.65,0.00056438,120]
[319533435,1710827540036,-2720.05,0.00056438,120]
[319533436,1710827540046,-500.0,0.00056438,120]
[319533437,1710827540056,-1324.1,0.00056438,120]
[319533438,1710827540067,-604.81,0.00056438,120]